[Event "Late-Titled-Tuesday-Blitz-March-26-2024"]
[Site "Chess.com"]
[Date "2024.03.26"]
[Round "10"]
[White "Mikhail_Golubev"]
[Black "subham777"]
[Result "0-1"]
[WhiteElo "2639"]
[BlackElo "2558"]
[TimeControl "180+1"]
[EndTime "15:54:33 PDT"]
[Termination "subham777 won on time"]

1. e4 {[%clk 0:03:00.9]} 1... e6 {[%clk 0:02:59.1]} 2. d4 {[%clk 0:03:00]} 2...
d5 {[%clk 0:02:53.8]} 3. e5 {[%clk 0:03:00.1]} 3... c5 {[%clk 0:02:53.4]} 4. c3
{[%clk 0:03:00.3]} 4... Nc6 {[%clk 0:02:48.6]} 5. Nf3 {[%clk 0:03:00.2]} 5...
Qb6 {[%clk 0:02:48.7]} 6. Bd3 {[%clk 0:03:00.1]} 6... cxd4 {[%clk 0:02:46.5]} 7.
O-O {[%clk 0:02:59.6]} 7... Bd7 {[%clk 0:02:44.8]} 8. Re1 {[%clk 0:02:59.4]}
8... Nge7 {[%clk 0:02:39.4]} 9. Nbd2 {[%clk 0:02:54.9]} 9... Ng6 {[%clk
0:02:34.4]} 10. Nb3 {[%clk 0:02:53.3]} 10... dxc3 {[%clk 0:02:33.6]} 11. bxc3
{[%clk 0:02:53.4]} 11... a5 {[%clk 0:02:33.7]} 12. Rb1 {[%clk 0:02:47.2]} 12...
a4 {[%clk 0:02:29]} 13. Nbd4 {[%clk 0:02:45]} 13... Qd8 {[%clk 0:02:28.9]} 14.
Rxb7 {[%clk 0:02:29.5]} 14... Bc5 {[%clk 0:02:20.7]} 15. Rxd7 {[%clk 0:02:20.6]}
15... Qxd7 {[%clk 0:02:18]} 16. Bb5 {[%clk 0:02:14.8]} 16... Nge7 {[%clk
0:02:17.6]} 17. Bg5 {[%clk 0:02:11.4]} 17... Ra5 {[%clk 0:02:04.3]} 18. Bxa4
{[%clk 0:01:48.5]} 18... Rxa4 {[%clk 0:02:02.3]} 19. Qxa4 {[%clk 0:01:47.2]}
19... Nxd4 {[%clk 0:01:50.9]} 20. Qa8+ {[%clk 0:01:29.4]} 20... Qc8 {[%clk
0:01:49.5]} 21. Qxc8+ {[%clk 0:01:27]} 21... Nxc8 {[%clk 0:01:50.4]} 22. cxd4
{[%clk 0:01:26.5]} 22... Be7 {[%clk 0:01:50.8]} 23. Bxe7 {[%clk 0:01:15.5]}
23... Nxe7 {[%clk 0:01:48.8]} 24. Rb1 {[%clk 0:01:11.8]} 24... O-O {[%clk
0:01:48.3]} 25. Rb7 {[%clk 0:01:10.7]} 25... Nf5 {[%clk 0:01:48.2]} 26. g4
{[%clk 0:01:08.6]} 26... Nh6 {[%clk 0:01:48.4]} 27. h3 {[%clk 0:01:05.3]} 27...
Ra8 {[%clk 0:01:47.9]} 28. Kg2 {[%clk 0:01:01.9]} 28... f6 {[%clk 0:01:43.8]}
29. exf6 {[%clk 0:00:55.6]} 29... gxf6 {[%clk 0:01:44.7]} 30. g5 {[%clk
0:00:55.2]} 30... fxg5 {[%clk 0:01:41.8]} 31. Nxg5 {[%clk 0:00:55]} 31... Rxa2
{[%clk 0:01:42.5]} 32. Nxe6 {[%clk 0:00:47.5]} 32... Nf5 {[%clk 0:01:41.3]} 33.
Rd7 {[%clk 0:00:39.5]} 33... Re2 {[%clk 0:01:35.9]} 34. Nf4 {[%clk 0:00:32.4]}
34... Rd2 {[%clk 0:01:30.9]} 35. Rxd5 {[%clk 0:00:19.1]} 35... Nxd4 {[%clk
0:01:30.4]} 36. Nh5 {[%clk 0:00:13.3]} 36... Nb3 {[%clk 0:01:22.3]} 37. Rb5
{[%clk 0:00:13.4]} 37... Nd4 {[%clk 0:01:20.2]} 38. Rb7 {[%clk 0:00:10.9]} 38...
h6 {[%clk 0:01:15.6]} 39. Nf6+ {[%clk 0:00:10.6]} 39... Kf8 {[%clk 0:01:15.5]}
40. Ng4 {[%clk 0:00:09.4]} 40... h5 {[%clk 0:01:01.7]} 41. Nf6 {[%clk
0:00:09.2]} 41... h4 {[%clk 0:01:00.9]} 42. Rd7 {[%clk 0:00:09.2]} 42... Nb3
{[%clk 0:00:30.5]} 43. Rb7 {[%clk 0:00:09.2]} 43... Nc5 {[%clk 0:00:28]} 44. Rh7
{[%clk 0:00:04.3]} 44... Nd3 {[%clk 0:00:28.4]} 45. Ng4 {[%clk 0:00:02.5]} 45...
Nf4+ {[%clk 0:00:26.7]} 46. Kh2 {[%clk 0:00:01.2]} 46... Ng6 {[%clk 0:00:25.4]}
0-1

[Event "Late-Titled-Tuesday-Blitz-March-26-2024"]
[Site "Chess.com"]
[Date "2024.03.26"]
[Round "10"]
[White "Hirna2005"]
[Black "emeli_chess"]
[Result "1-0"]
[WhiteElo "2325"]
[BlackElo "2403"]
[TimeControl "180+1"]
[EndTime "15:54:36 PDT"]
[Termination "Hirna2005 won on time"]

1. e4 {[%clk 0:03:00.9]} 1... c5 {[%clk 0:02:59.4]} 2. c3 {[%clk 0:03:00.8]}
2... d5 {[%clk 0:02:59.2]} 3. exd5 {[%clk 0:03:00.6]} 3... Qxd5 {[%clk
0:02:59.4]} 4. Nf3 {[%clk 0:03:01.1]} 4... Nf6 {[%clk 0:02:56.4]} 5. Na3 {[%clk
0:03:01]} 5... Bg4 {[%clk 0:02:45.5]} 6. Bc4 {[%clk 0:02:54.2]} 6... Qe4+ {[%clk
0:02:28.9]} 7. Be2 {[%clk 0:02:54.1]} 7... Bxf3 {[%clk 0:02:12.4]} 8. gxf3
{[%clk 0:02:53.5]} 8... Qf5 {[%clk 0:01:56.7]} 9. Qb3 {[%clk 0:02:48.2]} 9...
Qc8 {[%clk 0:01:52.2]} 10. d4 {[%clk 0:02:37.9]} 10... e6 {[%clk 0:01:51]} 11.
Bf4 {[%clk 0:02:30.8]} 11... Nc6 {[%clk 0:01:47.1]} 12. dxc5 {[%clk 0:02:24.5]}
12... Bxc5 {[%clk 0:01:46.1]} 13. O-O-O {[%clk 0:02:24.6]} 13... O-O {[%clk
0:01:33]} 14. Rhg1 {[%clk 0:02:23.2]} 14... Nd4 {[%clk 0:01:21.5]} 15. cxd4
{[%clk 0:02:01]} 15... Bd6+ {[%clk 0:01:20.9]} 16. Kb1 {[%clk 0:01:59.3]} 16...
Bxf4 {[%clk 0:01:20.8]} 17. Nc4 {[%clk 0:01:56.4]} 17... Nd5 {[%clk 0:01:08.3]}
18. Ne5 {[%clk 0:01:50.1]} 18... Bxe5 {[%clk 0:01:05.5]} 19. dxe5 {[%clk
0:01:49.5]} 19... Qc7 {[%clk 0:01:01.3]} 20. f4 {[%clk 0:01:36.2]} 20... Nxf4
{[%clk 0:00:51.5]} 21. Bf3 {[%clk 0:01:26.3]} 21... Qxe5 {[%clk 0:00:46.5]} 22.
Rd7 {[%clk 0:01:25.4]} 22... Ng6 {[%clk 0:00:38.8]} 23. Rxb7 {[%clk 0:01:22]}
23... Rab8 {[%clk 0:00:37.1]} 24. Rd1 {[%clk 0:01:12.8]} 24... Rxb7 {[%clk
0:00:35.3]} 25. Bxb7 {[%clk 0:01:06.7]} 25... Qxh2 {[%clk 0:00:29]} 26. Be4
{[%clk 0:01:00.3]} 26... Qxf2 {[%clk 0:00:27.6]} 27. a3 {[%clk 0:01:00]} 27...
Qf4 {[%clk 0:00:24.9]} 28. Bc2 {[%clk 0:00:57.7]} 28... Rb8 {[%clk 0:00:22.7]}
29. Qd3 {[%clk 0:00:42]} 29... h6 {[%clk 0:00:19]} 30. b4 {[%clk 0:00:40.3]}
30... Qe5 {[%clk 0:00:18]} 31. Ka2 {[%clk 0:00:39.4]} 31... a5 {[%clk
0:00:17.1]} 32. bxa5 {[%clk 0:00:33.1]} 32... Qxa5 {[%clk 0:00:16.1]} 33. Bb3
{[%clk 0:00:32.7]} 33... Qb6 {[%clk 0:00:15.2]} 34. a4 {[%clk 0:00:32.3]} 34...
Ne5 {[%clk 0:00:13]} 35. Qc3 {[%clk 0:00:31.4]} 35... Qf2+ {[%clk 0:00:09]} 36.
Rd2 {[%clk 0:00:30.7]} 36... Qf4 {[%clk 0:00:08.1]} 37. a5 {[%clk 0:00:28.4]}
37... Ra8 {[%clk 0:00:07.6]} 38. Rd4 {[%clk 0:00:25.6]} 38... Qf2+ {[%clk
0:00:07.1]} 39. Ka3 {[%clk 0:00:25.8]} 39... g6 {[%clk 0:00:05.9]} 40. Rd6
{[%clk 0:00:20.6]} 40... Qg3 {[%clk 0:00:04]} 41. Qxg3 {[%clk 0:00:19.6]} 41...
Rxa5+ {[%clk 0:00:04.3]} 42. Kb4 {[%clk 0:00:19.3]} 42... Ra8 {[%clk 0:00:01.7]}
43. Qxe5 {[%clk 0:00:19.3]} 1-0

[Event "Late-Titled-Tuesday-Blitz-March-26-2024"]
[Site "Chess.com"]
[Date "2024.03.26"]
[Round "10"]
[White "SahibSinghKnight"]
[Black "GodzillaChessYoutube"]
[Result "1-0"]
[WhiteElo "2592"]
[BlackElo "2684"]
[TimeControl "180+1"]
[EndTime "15:54:41 PDT"]
[Termination "SahibSinghKnight won by resignation"]

1. e4 {[%clk 0:02:58.4]} 1... Nh6 {[%clk 0:03:00.9]} 2. d4 {[%clk 0:02:57.8]}
2... d5 {[%clk 0:03:01]} 3. exd5 {[%clk 0:02:54.3]} 3... Qxd5 {[%clk 0:03:00.6]}
4. Nc3 {[%clk 0:02:54.5]} 4... Qd8 {[%clk 0:03:01.2]} 5. Bxh6 {[%clk 0:02:52.9]}
5... gxh6 {[%clk 0:03:02.1]} 6. Nf3 {[%clk 0:02:53.4]} 6... Bf5 {[%clk
0:02:59.8]} 7. Ne5 {[%clk 0:02:48.4]} 7... Qc8 {[%clk 0:02:53.8]} 8. Bc4 {[%clk
0:02:45.8]} 8... e6 {[%clk 0:02:51.9]} 9. Qf3 {[%clk 0:02:42.6]} 9... Bg6 {[%clk
0:02:32.1]} 10. Ne4 {[%clk 0:02:33.5]} 10... Be7 {[%clk 0:02:30.8]} 11. Nf6+
{[%clk 0:02:33.1]} 11... Kf8 {[%clk 0:02:22.2]} 12. Nxh7+ {[%clk 0:02:25]} 12...
Kg7 {[%clk 0:02:17.5]} 13. Bd3 {[%clk 0:02:15.9]} 13... Nc6 {[%clk 0:01:54.8]}
14. Bxg6 {[%clk 0:02:01.6]} 14... Nxe5 {[%clk 0:01:53.4]} 15. dxe5 {[%clk
0:02:01.5]} 15... fxg6 {[%clk 0:01:52.8]} 16. Nf6 {[%clk 0:02:01.9]} 16... Rf8
{[%clk 0:01:48.7]} 17. O-O-O {[%clk 0:02:01.6]} 17... Bxf6 {[%clk 0:01:41.8]}
18. exf6+ {[%clk 0:02:02.5]} 18... Rxf6 {[%clk 0:01:42.4]} 19. Qc3 {[%clk
0:02:02.5]} 19... c5 {[%clk 0:01:32.4]} 20. Rd6 {[%clk 0:02:00.1]} 20... Qf8
{[%clk 0:00:26]} 21. Rxe6 {[%clk 0:01:54.6]} 21... Rd8 {[%clk 0:00:26.1]} 22.
Rhe1 {[%clk 0:01:47.9]} 22... Rd7 {[%clk 0:00:26.3]} 23. Re8 {[%clk 0:01:34.4]}
23... Qd6 {[%clk 0:00:24.7]} 24. a3 {[%clk 0:01:16.7]} 24... b6 {[%clk
0:00:16.6]} 25. R8e6 {[%clk 0:00:37.8]} 25... Qf4+ {[%clk 0:00:16]} 26. Kb1
{[%clk 0:00:35.7]} 26... Rf7 {[%clk 0:00:14]} 27. Rxf6 {[%clk 0:00:34]} 27...
Rxf6 {[%clk 0:00:14.9]} 28. f3 {[%clk 0:00:30.1]} 28... g5 {[%clk 0:00:10.8]}
29. Re6 {[%clk 0:00:28.6]} 29... Kf7 {[%clk 0:00:06.5]} 30. Rxf6+ {[%clk
0:00:28.8]} 30... Qxf6 {[%clk 0:00:07.4]} 31. Qxf6+ {[%clk 0:00:29.2]} 31...
Kxf6 {[%clk 0:00:08.3]} 32. Kc1 {[%clk 0:00:29.6]} 32... Ke5 {[%clk 0:00:08.8]}
33. Kd2 {[%clk 0:00:30.5]} 33... Kd4 {[%clk 0:00:08.7]} 34. c3+ {[%clk
0:00:29.9]} 34... Kc4 {[%clk 0:00:08.7]} 35. Kc2 {[%clk 0:00:30.4]} 35... a5
{[%clk 0:00:08]} 36. b3+ {[%clk 0:00:28.1]} 36... Kd5 {[%clk 0:00:08.3]} 37. Kd3
{[%clk 0:00:28.4]} 37... a4 {[%clk 0:00:08.6]} 38. c4+ {[%clk 0:00:28.3]} 38...
Ke5 {[%clk 0:00:08.9]} 39. bxa4 {[%clk 0:00:28.4]} 39... Kf4 {[%clk 0:00:08.9]}
40. Ke2 {[%clk 0:00:25.5]} 40... h5 {[%clk 0:00:09.3]} 41. g3+ {[%clk
0:00:25.4]} 41... Ke5 {[%clk 0:00:09.7]} 42. Ke3 {[%clk 0:00:25.5]} 42... Kf5
{[%clk 0:00:09.9]} 43. f4 {[%clk 0:00:25.4]} 43... g4 {[%clk 0:00:08.8]} 44. Kd3
{[%clk 0:00:25.5]} 44... Ke6 {[%clk 0:00:08.8]} 45. Ke4 {[%clk 0:00:25.7]} 45...
Kf6 {[%clk 0:00:09.2]} 46. f5 {[%clk 0:00:26.2]} 46... Kg5 {[%clk 0:00:08.9]}
47. Ke5 {[%clk 0:00:26.5]} 47... h4 {[%clk 0:00:09.2]} 48. f6 {[%clk 0:00:26.5]}
1-0

[Event "Late-Titled-Tuesday-Blitz-March-26-2024"]
[Site "Chess.com"]
[Date "2024.03.26"]
[Round "10"]
[White "bilelou"]
[Black "Siemba"]
[Result "1-0"]
[WhiteElo "2712"]
[BlackElo "2478"]
[TimeControl "180+1"]
[EndTime "15:54:42 PDT"]
[Termination "bilelou won on time"]

1. e4 {[%clk 0:03:00.9]} 1... c5 {[%clk 0:02:55.1]} 2. Nf3 {[%clk 0:02:55.8]}
2... d6 {[%clk 0:02:46.6]} 3. d4 {[%clk 0:02:45.1]} 3... cxd4 {[%clk 0:02:43.3]}
4. Nxd4 {[%clk 0:02:43]} 4... Nf6 {[%clk 0:02:43.4]} 5. Nc3 {[%clk 0:02:39.2]}
5... a6 {[%clk 0:02:42.8]} 6. h4 {[%clk 0:02:28.3]} 6... Qc7 {[%clk 0:02:38.5]}
7. Be2 {[%clk 0:02:25.7]} 7... e6 {[%clk 0:02:22.7]} 8. g4 {[%clk 0:02:24.3]}
8... b5 {[%clk 0:02:19.8]} 9. a3 {[%clk 0:02:11.3]} 9... Bb7 {[%clk 0:02:16.9]}
10. Bf3 {[%clk 0:02:09.1]} 10... Nc6 {[%clk 0:02:10.9]} 11. g5 {[%clk
0:02:07.1]} 11... Nd7 {[%clk 0:02:03.5]} 12. Be3 {[%clk 0:02:05.4]} 12... Nce5
{[%clk 0:01:59.7]} 13. Be2 {[%clk 0:02:00.6]} 13... Nc4 {[%clk 0:01:56.4]} 14.
Bxc4 {[%clk 0:01:59.4]} 14... Qxc4 {[%clk 0:01:57.3]} 15. h5 {[%clk 0:01:50.2]}
15... d5 {[%clk 0:01:43.2]} 16. exd5 {[%clk 0:01:40.5]} 16... Bxd5 {[%clk
0:01:31.8]} 17. Rh4 {[%clk 0:01:40.4]} 17... Bb7 {[%clk 0:00:53.4]} 18. h6
{[%clk 0:01:34.4]} 18... gxh6 {[%clk 0:00:47.7]} 19. Nf5 {[%clk 0:01:25.8]}
19... Qc6 {[%clk 0:00:40.6]} 20. Nxh6 {[%clk 0:01:19.1]} 20... Bxh6 {[%clk
0:00:28.5]} 21. gxh6 {[%clk 0:01:18.3]} 21... O-O-O {[%clk 0:00:23.8]} 22. Qd4
{[%clk 0:01:18.6]} 22... Rhg8 {[%clk 0:00:18.9]} 23. O-O-O {[%clk 0:01:00.4]}
23... e5 {[%clk 0:00:19.1]} 24. Qa7 {[%clk 0:00:56.2]} 24... Nf6 {[%clk
0:00:19.4]} 25. Rxd8+ {[%clk 0:00:54.3]} 25... Rxd8 {[%clk 0:00:20.3]} 26. a4
{[%clk 0:00:52.1]} 26... Nd5 {[%clk 0:00:16]} 27. axb5 {[%clk 0:00:50]} 27...
Nxc3 {[%clk 0:00:13]} 28. bxc3 {[%clk 0:00:38.8]} 28... Qxc3 {[%clk 0:00:13.9]}
29. Qc5+ {[%clk 0:00:31]} 29... Qxc5 {[%clk 0:00:13]} 30. Bxc5 {[%clk
0:00:31.9]} 30... axb5 {[%clk 0:00:13.3]} 31. Rg4 {[%clk 0:00:31.2]} 31... Rd7
{[%clk 0:00:09.7]} 32. Rg5 {[%clk 0:00:23.4]} 32... f6 {[%clk 0:00:06.9]} 33.
Rg8+ {[%clk 0:00:23.6]} 33... Kc7 {[%clk 0:00:07]} 34. Rf8 {[%clk 0:00:24]}
34... Be4 {[%clk 0:00:05.3]} 35. Rxf6 {[%clk 0:00:23.2]} 35... Bg6 {[%clk
0:00:04]} 36. Re6 {[%clk 0:00:22.1]} 36... e4 {[%clk 0:00:03.9]} 37. Kb2 {[%clk
0:00:21.9]} 37... Rd5 {[%clk 0:00:03.3]} 38. Be3 {[%clk 0:00:21.5]} 38... Rh5
{[%clk 0:00:03.2]} 39. Kc3 {[%clk 0:00:19.3]} 39... Kd7 {[%clk 0:00:03.5]} 40.
Rb6 {[%clk 0:00:17.8]} 40... Kc7 {[%clk 0:00:03.3]} 41. Ra6 {[%clk 0:00:17.5]}
41... Kb7 {[%clk 0:00:03.2]} 42. Ra7+ {[%clk 0:00:17.6]} 42... Kc6 {[%clk
0:00:03.5]} 43. Kb4 {[%clk 0:00:16.8]} 43... Kd6 {[%clk 0:00:01.1]} 44. Ra6+
{[%clk 0:00:16.4]} 44... Kc7 {[%clk 0:00:01.6]} 45. Ra7+ {[%clk 0:00:15.6]}
45... Kc6 {[%clk 0:00:01.7]} 46. Rg7 {[%clk 0:00:16]} 1-0

[Event "Late-Titled-Tuesday-Blitz-March-26-2024"]
[Site "Chess.com"]
[Date "2024.03.26"]
[Round "10"]
[White "Tol_Tol"]
[Black "Aram7Adam"]
[Result "1/2-1/2"]
[WhiteElo "2304"]
[BlackElo "2414"]
[TimeControl "180+1"]
[EndTime "15:54:46 PDT"]
[Termination "Game drawn by stalemate"]

1. d4 {[%clk 0:03:00.9]} 1... c5 {[%clk 0:03:00]} 2. d5 {[%clk 0:03:00.8]} 2...
d6 {[%clk 0:02:59.7]} 3. c4 {[%clk 0:03:01.1]} 3... e5 {[%clk 0:02:59.8]} 4. e4
{[%clk 0:02:59.8]} 4... f5 {[%clk 0:02:59.9]} 5. exf5 {[%clk 0:02:58.5]} 5...
Bxf5 {[%clk 0:02:59]} 6. Nc3 {[%clk 0:02:58.1]} 6... Nf6 {[%clk 0:02:58.4]} 7.
Bg5 {[%clk 0:02:58.3]} 7... Be7 {[%clk 0:02:58.2]} 8. Bxf6 {[%clk 0:02:57.9]}
8... Bxf6 {[%clk 0:02:58.2]} 9. Bd3 {[%clk 0:02:58.8]} 9... Qd7 {[%clk
0:02:49.8]} 10. Nge2 {[%clk 0:02:57.5]} 10... Bxd3 {[%clk 0:02:46.8]} 11. Qxd3
{[%clk 0:02:57.2]} 11... Na6 {[%clk 0:02:47.7]} 12. O-O {[%clk 0:02:54.2]} 12...
O-O {[%clk 0:02:43.4]} 13. Ng3 {[%clk 0:02:53.8]} 13... g6 {[%clk 0:02:43.3]}
14. Nce4 {[%clk 0:02:51.5]} 14... Bg7 {[%clk 0:02:41]} 15. Qe2 {[%clk
0:02:41.2]} 15... Rf4 {[%clk 0:02:36.4]} 16. Ng5 {[%clk 0:02:29.6]} 16... Nc7
{[%clk 0:02:34.7]} 17. Rac1 {[%clk 0:02:08.3]} 17... h6 {[%clk 0:02:27.6]} 18.
N5e4 {[%clk 0:02:04.7]} 18... Raf8 {[%clk 0:02:24.5]} 19. f3 {[%clk 0:02:00]}
19... b5 {[%clk 0:02:17]} 20. cxb5 {[%clk 0:01:54.3]} 20... Nxb5 {[%clk
0:02:14.6]} 21. b4 {[%clk 0:01:48.9]} 21... cxb4 {[%clk 0:02:03.2]} 22. Qc4
{[%clk 0:01:34.7]} 22... h5 {[%clk 0:01:45.1]} 23. Ne2 {[%clk 0:01:29]} 23...
Rh4 {[%clk 0:01:22.6]} 24. Qxb4 {[%clk 0:01:23.5]} 24... Bh6 {[%clk 0:01:19]}
25. Rc6 {[%clk 0:00:52.9]} 25... Be3+ {[%clk 0:01:01.5]} 26. Kh1 {[%clk
0:00:52.7]} 26... a6 {[%clk 0:00:45.3]} 27. Nf6+ {[%clk 0:00:41.4]} 27... Rxf6
{[%clk 0:00:45.2]} 28. Qxh4 {[%clk 0:00:40.9]} 28... Kg7 {[%clk 0:00:45.9]} 29.
Ng3 {[%clk 0:00:30.7]} 29... Nd4 {[%clk 0:00:38.9]} 30. Rxa6 {[%clk 0:00:12.3]}
30... Rf4 {[%clk 0:00:19.6]} 31. Qg5 {[%clk 0:00:07]} 31... Rxf3 {[%clk
0:00:16.6]} 32. Nxh5+ {[%clk 0:00:07.1]} 32... Kh7 {[%clk 0:00:16]} 33. Nf6+
{[%clk 0:00:02.6]} 33... Kg7 {[%clk 0:00:11.9]} 34. Rxf3 {[%clk 0:00:02.8]}
34... Bxg5 {[%clk 0:00:11.2]} 35. Nxd7 {[%clk 0:00:03.3]} 35... Nxf3 {[%clk
0:00:11.1]} 36. gxf3 {[%clk 0:00:03.9]} 36... Kh6 {[%clk 0:00:09.8]} 37. Rxd6
{[%clk 0:00:04.5]} 37... Be3 {[%clk 0:00:09.8]} 38. Nxe5 {[%clk 0:00:04]} 38...
Bf4 {[%clk 0:00:09.9]} 39. Re6 {[%clk 0:00:04.8]} 39... Kh5 {[%clk 0:00:10]} 40.
d6 {[%clk 0:00:05.7]} 40... Kh4 {[%clk 0:00:10.1]} 41. d7 {[%clk 0:00:06.6]}
41... Kh3 {[%clk 0:00:10.7]} 42. d8=Q {[%clk 0:00:07.1]} 42... Bxe5 {[%clk
0:00:11.1]} 43. Rxe5 {[%clk 0:00:07]} 43... g5 {[%clk 0:00:11.9]} 44. Qxg5
{[%clk 0:00:07.4]} 1/2-1/2

[Event "Late-Titled-Tuesday-Blitz-March-26-2024"]
[Site "Chess.com"]
[Date "2024.03.26"]
[Round "10"]
[White "Xavier_mompel"]
[Black "Heydarli77"]
[Result "1-0"]
[WhiteElo "2360"]
[BlackElo "2452"]
[TimeControl "180+1"]
[EndTime "15:54:47 PDT"]
[Termination "Xavier_mompel won by checkmate"]

1. e4 {[%clk 0:03:00.9]} 1... c5 {[%clk 0:02:57.7]} 2. Nf3 {[%clk 0:03:00.7]}
2... e6 {[%clk 0:02:56.4]} 3. d4 {[%clk 0:03:00.6]} 3... cxd4 {[%clk 0:02:54.3]}
4. Nxd4 {[%clk 0:03:01.5]} 4... a6 {[%clk 0:02:54.2]} 5. Nc3 {[%clk 0:03:01.5]}
5... b5 {[%clk 0:02:53.1]} 6. Bd3 {[%clk 0:03:00.3]} 6... Bb7 {[%clk 0:02:53.5]}
7. O-O {[%clk 0:03:00.1]} 7... Nf6 {[%clk 0:02:53]} 8. Re1 {[%clk 0:02:58.1]}
8... Bd6 {[%clk 0:02:51.6]} 9. e5 {[%clk 0:02:51.7]} 9... Bc5 {[%clk 0:02:48.3]}
10. Nb3 {[%clk 0:02:41.3]} 10... Be7 {[%clk 0:02:46.7]} 11. exf6 {[%clk
0:02:41.1]} 11... gxf6 {[%clk 0:02:47.1]} 12. Be3 {[%clk 0:02:33.3]} 12... Nc6
{[%clk 0:02:45.7]} 13. Nc5 {[%clk 0:02:20.4]} 13... Bc8 {[%clk 0:02:43.6]} 14.
a3 {[%clk 0:02:01.2]} 14... d6 {[%clk 0:02:40.7]} 15. Nb3 {[%clk 0:02:01.1]}
15... Bd7 {[%clk 0:02:39.5]} 16. Be2 {[%clk 0:01:59.8]} 16... Qc7 {[%clk
0:02:37.4]} 17. Bf3 {[%clk 0:01:56.6]} 17... Rc8 {[%clk 0:02:36.5]} 18. Bf4
{[%clk 0:01:49.2]} 18... Ne5 {[%clk 0:02:27.1]} 19. Bxe5 {[%clk 0:01:43]} 19...
fxe5 {[%clk 0:02:24.2]} 20. Qe2 {[%clk 0:01:39.6]} 20... Qb6 {[%clk 0:02:11.5]}
21. Rad1 {[%clk 0:01:34.6]} 21... Rc4 {[%clk 0:02:00.5]} 22. Qe3 {[%clk
0:01:29.2]} 22... Qc7 {[%clk 0:01:57.9]} 23. Nd2 {[%clk 0:01:15.3]} 23... Rf4
{[%clk 0:01:54]} 24. g3 {[%clk 0:01:14.5]} 24... Rf6 {[%clk 0:01:53.4]} 25. Nde4
{[%clk 0:01:13.4]} 25... Rg6 {[%clk 0:01:53.3]} 26. Bh5 {[%clk 0:01:09]} 26...
Rg7 {[%clk 0:01:50.9]} 27. Qf3 {[%clk 0:01:07.7]} 27... Kf8 {[%clk 0:01:42.4]}
28. Qe2 {[%clk 0:00:56.8]} 28... f5 {[%clk 0:01:38.9]} 29. Nd2 {[%clk
0:00:56.6]} 29... Qb6 {[%clk 0:01:25.8]} 30. Nb3 {[%clk 0:00:53.6]} 30... Rg5
{[%clk 0:01:22.3]} 31. Bf3 {[%clk 0:00:51.4]} 31... Kg7 {[%clk 0:01:21.5]} 32.
Qe3 {[%clk 0:00:50]} 32... Qc7 {[%clk 0:01:17.5]} 33. Kh1 {[%clk 0:00:38.8]}
33... h5 {[%clk 0:01:17.2]} 34. h4 {[%clk 0:00:38.3]} 34... Rg6 {[%clk
0:01:14.7]} 35. Qe2 {[%clk 0:00:36.3]} 35... e4 {[%clk 0:01:08.2]} 36. Bg2
{[%clk 0:00:32.1]} 36... Kh6 {[%clk 0:01:04.9]} 37. Qd2+ {[%clk 0:00:30]} 37...
Kh7 {[%clk 0:01:04.7]} 38. Nxe4 {[%clk 0:00:29.9]} 38... fxe4 {[%clk 0:01:03.4]}
39. Bxe4 {[%clk 0:00:30.8]} 39... Bc6 {[%clk 0:01:02.9]} 40. Qe2 {[%clk
0:00:22.2]} 40... Qb7 {[%clk 0:01:00.5]} 41. Qxh5+ {[%clk 0:00:21]} 41... Kg7
{[%clk 0:00:58.3]} 42. Qxg6+ {[%clk 0:00:21.2]} 42... Kf8 {[%clk 0:00:58.4]} 43.
Bxc6 {[%clk 0:00:21.2]} 43... Qxc6+ {[%clk 0:00:57.9]} 44. Qe4 {[%clk
0:00:21.6]} 44... Qb6 {[%clk 0:00:55.6]} 45. Qxe6 {[%clk 0:00:19.7]} 45... Rh7
{[%clk 0:00:55.4]} 46. Qc8+ {[%clk 0:00:16.2]} 46... Kf7 {[%clk 0:00:55.3]} 47.
Qf5+ {[%clk 0:00:16.3]} 47... Kg8 {[%clk 0:00:54.8]} 48. Qg6+ {[%clk 0:00:15.3]}
48... Rg7 {[%clk 0:00:55.1]} 49. Qe8+ {[%clk 0:00:15.5]} 49... Bf8 {[%clk
0:00:55.5]} 50. Qe6+ {[%clk 0:00:14.1]} 50... Kh8 {[%clk 0:00:54.5]} 51. Rd4
{[%clk 0:00:13.5]} 51... Qc6+ {[%clk 0:00:53.6]} 52. Qd5 {[%clk 0:00:12.2]}
52... Qxc2 {[%clk 0:00:53.5]} 53. Rf4 {[%clk 0:00:08.7]} 53... Be7 {[%clk
0:00:49.7]} 54. Qh5+ {[%clk 0:00:07.1]} 54... Kg8 {[%clk 0:00:49.2]} 55. Qe8+
{[%clk 0:00:07.2]} 55... Kh7 {[%clk 0:00:49.4]} 56. Rxe7 {[%clk 0:00:07.1]}
56... Qd1+ {[%clk 0:00:42.8]} 57. Kh2 {[%clk 0:00:06.5]} 57... Qxb3 {[%clk
0:00:41.9]} 58. Qh5+ {[%clk 0:00:05.7]} 58... Kg8 {[%clk 0:00:41]} 59. Re8#
{[%clk 0:00:06.6]} 1-0